[Event "BL 2024-25"]
[Site "Austria"]
[Date "2024.10.12"]
[Round "4.12"]
[White "Huber, Benedikt"]
[Black "Bures, Jaroslav"]
[Result "1/2-1/2"]
[Annotator "TA"]
[ECO "B11"]
[WhiteElo "2299"]
[BlackElo "2407"]
[PlyCount "100"]
[EventDate "2024.08.28"]
[EventType "team-tourn"]
[EventCountry "AUT"]
[SourceTitle "playchess.com"]
[Source "ChessBase"]
[SourceQuality "1"]
[WhiteTeam "Ottakring"]
[BlackTeam "Mistelbach"]
[TimeControl "40/5400+30:1800+30"]

{[%evp 10,100,29,8,38,38,32,41,45,30,35,34,37,33,37,42,43,45,65,72,70,59,63,53,71,49,55,58,50,61,64,47,43,51,46,43,48,36,148,137,145,143,145,129,109,38,59,39,27,16,16,14,14,12,38,38,53,47,163,77,83,80,97,83,278,72,66,0,168,168,154,122,118,68,68,68,120,127,997,997,990,990,912,571,571,562,525,491,462,0,0,0,0]} 1. e4 c6 {[%emt 1:31:00]} 2. Nf3 d5 {[%emt 0:00:30]} 3. Nc3 Bg4 {[%emt 0:00:30]} 4. h3 Bxf3 {[%emt 0:00:30]} 5. Qxf3 Nf6 {[%emt 0:00:30]} 6. Be2 dxe4 {[%emt 0:00:30]} 7. Nxe4 Nxe4 {[%emt 0:00:30]} 8. Qxe4 Qd5 {[%emt 0:00:30] White is slightly better.} 9. Qxd5 cxd5 {[%emt 0:00:30]} 10. d4 Nc6 {[%emt 0:00:30]} 11. Be3 e6 {[%emt 0:00:30]} 12. O-O-O h5 {[%emt 0:00:30]} 13. g4 hxg4 {[%emt 0:00:30]} 14. hxg4 Rxh1 {[%emt 0:00:30]} 15. Rxh1 a6 {[%emt 0:00:30]} 16. f4 Ne7 {[%emt 0:00:30]} 17. Kd2 Nc8 {[%emt 0:00:30]} 18. f5 Nd6 {[%emt 0:00:30]} 19. fxe6 fxe6 {[%emt 0:00:30]} 20. Bf4 Rc8 {[%emt 0:00:30]} 21. Bd3 Nc4+ {[%emt 0:00:30]} 22. Bxc4 Rxc4 $14 {[%emt 0:00:30][%mdl 4096] Endgame. KRB-KRB} 23. Be5 {Hoping for g5.} Kf7 {[%emt 0:00:30]} (23... Rc8 $1 $14) 24. Rf1+ $1 $16 Kg8 {[%emt 0:00:30]} 25. g5 {[%cal Bg4g5,Bg5g6][%mdl 32]} Be7 {[%emt 0:00:30]} 26. g6 Bf6 {[%emt 0:00:30]} 27. Bxf6 ({White should try} 27. b3 $16 Rc8 28. Bd6 (28. Bxf6 Rf8 $11)) 27... gxf6 $14 {[%emt 0:00:30]} 28. Rxf6 {Strongly threatening c3.} Rxd4+ $16 {[%emt 0:00:30] KR-KR} 29. Kc3 Rc4+ {[%emt 0:00:30]} 30. Kd3 e5 {[%emt 0:00:30]} 31. c3 Kg7 {[%emt 0:00:30]} 32. Rd6 Ra4 {[%emt 0:00:30]} 33. a3 Ra5 {[%emt 0:00:30]} (33... Rg4 $1 $14) 34. Kc2 (34. Re6 $18) 34... e4 {[%emt 0:00:30]} 35. Kd2 Kh6 {[%emt 0:00:30]} (35... Rb5 36. b4 d4 37. cxd4 $16 (37. Rxd4 Kxg6 38. Rxe4 Kf5 $16)) 36. Ke3 Kg7 $2 {[%emt 0:00:30]} (36... Rc5 $16) 37. Kf4 $2 (37. Kd4 $1 $18 {[%cal Od6e6] and the rest is easy. And now Re6! would win.} Kh6 38. Rf6 (38. Rxd5 $2 Rxd5+ 39. Kxe4 Ra5 $19)) 37... Rc5 {[%emt 0:00:30]} 38. Ke3 (38. Ke5 $14) 38... Ra5 $1 $18 {[%emt 0:00:30]} 39. Kd4 $1 {[%cal Od6e6] Repels Rc5} Kh6 {[%emt 0:00:30]} 40. Re6 {White is more active.} (40. Rxd5 $2 {too greedy.} Rxd5+ 41. Kxe4 Rd2 $19) 40... Kg7 {[%emt 0:00:30] [#]} 41. a4 $1 {[%mdl 512]} Rxa4+ $14 {[%emt 0:30:30]} 42. Kxd5 {[%cal Oe6b6] Black must now prevent Rb6!} Ra2 {[%emt 0:00:30]} (42... b5 $1 $14) 43. b4 $16 ({Don't play} 43. Rxe4 $6 Rxb2 44. Rb4 Rd2+ (44... Rxb4 45. cxb4 b6 46. Kc6 $11) 45. Ke5 b5 $11) 43... e3 {[%emt 0:00:30][%mdl 8192]} 44. Rxe3 $18 Kxg6 {[%emt 0:00:30]} 45. Kc5 b5 {[%emt 0:00:30]} 46. Rf3 {Rf8 is the strong threat.} Ra3 {[%emt 0:00:30]} 47. Kb6 Kg7 {[%emt 0:00:30] Prevents Rf8} 48. Rf5 Kg8 {[%emt 0:00:30]} 49. Kc7 $2 (49. Rf6 $18 Kg7 50. Rf3) 49... Rxc3+ $11 {[%emt 0:00:30]} 50. Kb6 Ra3 {[%emt 0:00:30] Weighted Error Value: White=0.37/Black=0.22 (precise) .  Loses game:     	---       	Black=2      Missed win:     	White=2     	---        Mistake:       	White=4     	Black=3      Inaccurate:     	---       	Black=1      OK:         	White=10    	Black=15     Best:        	White=5     	Black=8      Strong:       	White=2     	Black=1} 1/2-1/2

[Event "BL 2024-25"]
[Site "Austria"]
[Date "2024.10.12"]
[Round "4.13"]
[White "Costa, Leonardo"]
[Black "Sarana, Alexey"]
[Result "1/2-1/2"]
[Annotator "TA"]
[ECO "B90"]
[WhiteElo "2472"]
[BlackElo "2717"]
[PlyCount "97"]
[EventDate "2024.08.28"]
[EventType "team-tourn"]
[EventCountry "AUT"]
[SourceTitle "playchess.com"]
[Source "ChessBase"]
[SourceQuality "1"]
[WhiteTeam "Maria Saal"]
[BlackTeam "Linz"]
[TimeControl "40/5400+30:1800+30"]

{[%evp 11,97,-2,14,20,8,0,33,0,43,44,43,27,41,38,51,35,39,0,0,0,0,0,0,0,14,13,63,0,15,0,0,0,-4,-11,-8,-8,29,32,52,36,74,62,66,69,66,68,72,69,62,55,80,35,23,41,57,47,49,38,49,28,28,28,28,28,27,27,27,27,28,28,28,28,28,28,28,27,27,27,37,8,8,8,8,8,8,0,0,0]} 1. e4 {[%emt 0:00:02]} c5 {[%emt 0:00:06]} 2. Nf3 {[%emt 0:00:03]} d6 {[%emt 0:00:20]} 3. d4 {[%emt 0:00:04]} Nf6 {[%emt 0:00:13][%cal Bg8f6,Bf6d7,Bd7e5][%mdl 32]} 4. Nc3 {[%emt 0:00:03]} cxd4 {[%emt 0:00:08]} 5. Nxd4 {[%emt 0:00:04]} a6 {[%emt 0:00:23]} 6. Rg1 {[%emt 0:00:03]} g6 {[%emt 0:00:31]} 7. g4 {[%emt 0:00:05][%cal Bg2g4,Bg4g5][%mdl 32]} Nc6 {[%emt 0:00:20]} 8. g5 {[%emt 0:00:02]} Nd7 {[%emt 0:00:08]} 9. h4 {[%emt 0:00:02][%cal Bh2h4,Bh4h5][%mdl 32] White is slightly better.} h6 {[%emt 0:02:31]} 10. h5 {[%emt 0:20:43] aiming for hxg6.} Nxd4 {[%emt 0:03:04]} 11. Qxd4 {[%emt 0:00:41]} Ne5 {[%emt 0:00:06]} 12. Be2 {[%emt 0:03:21] [#] Against Nf3+. Threatens to win with f4.} hxg5 {[%emt 0:00:20]} 13. hxg6 {[%emt 0:14:05]} (13. Rxg5 Bg7 14. Qd1 (14. f4 $2 Nf3+ 15. Bxf3 Bxd4 $19) 14... Be6 $17) 13... Bg7 {[%emt 0:02:05][%cal Oe5f3] And now ...Nf3+! would win.} 14. gxf7+ {[%emt 0:05:14]} (14. Bxg5 $2 Nf3+ (14... fxg6 $2 15. O-O-O $18) 15. Bxf3 Bxd4 $19) 14... Kxf7 {[%emt 0:01:06][%cal Oe5f3] ...Nf3+! would now be deadly.} 15. Qd1 {[%emt 0:02:14][%cal Oc3d5]} (15. Bxg5 $2 Nf3+ 16. Bxf3 Bxd4 $19) 15... g4 {[%emt 0:04:09]} 16. Be3 {[%emt 0:10:27]} Be6 {[%emt 0:02:51]} 17. Nd5 {[%emt 0:02:13]} Rc8 {[%emt 0:08:43]} 18. c3 {[%emt 0:07:53]} Bf6 {[%emt 0:07:02] Inhibits Bg5.} (18... Rh4 $11) 19. Nf4 {[%emt 0:02:29]} (19. Qc2 $14) 19... Qd7 $1 $11 {[%emt 0:00:40]} 20. Bd4 {[%emt 0:03:37] [#] Black must now prevent Bxe5.} Rcg8 $1 {[%emt 0:01:50]} (20... Rh4 21. Bxe5 Bxe5 22. Nxe6 Qxe6 23. Bxg4 Bxc3+ 24. bxc3 $11) 21. Bxe5 {[%emt 0:04:38]} Bxe5 {[%emt 0:00:26][%cal Bf6e5,Be5h2,Bh2f4][%mdl 32]} 22. Nxe6 {[%emt 0:00:03]} Qxe6 {[%emt 0:00:13]} 23. Qa4 {[%emt 0:01:24] Bc4 is the strong threat.} (23. Bxg4 $2 {is the wrong capture.} Rxg4 24. Qxg4 Qxg4 25. Rxg4 Rh1+ 26. Kd2 Rxa1 $19) (23. Qb3 {simplifies} Qxb3 24. axb3 g3 25. fxg3 Rxg3 26. Rxg3 Bxg3+ 27. Kd2) 23... Qc8 {[%emt 0:04:53]} 24. O-O-O {[%emt 0:01:40]} Rg6 {[%emt 0:03:43]} 25. Rg2 {[%emt 0:01:40]} Rh4 {[%emt 0:02:27]} 26. Rdg1 {[%emt 0:03:30]} Bh2 {[%emt 0:01:10]} 27. Rf1 {[%emt 0:00:41]} Bf4+ {[%emt 0:05:36]} 28. Kb1 {[%emt 0:00:04]} b5 {[%emt 0:00:05]} 29. Qd1 {[%emt 0:04:23]} Qe6 {[%emt 0:00:48]} 30. Bd3 {[%emt 0:00:16][%cal Be2d3,Bd3c2,Bc2d1,Bd1b3][%mdl 32]} ({Not} 30. f3 $2 g3 31. Re1 Rh2 $19) 30... Rg5 {[%emt 0:01:17]} 31. Rh1 {[%emt 0:01:13]} Rxh1 {[%emt 0:04:00]} 32. Qxh1 {[%emt 0:00:03]} Qg6 {[%emt 0:00:20]} 33. Bc2 {[%emt 0:00:38]} Be5 {[%emt 0:02:21]} 34. Qd1 {[%emt 0:00:57]} e6 {[%emt 0:03:51]} 35. Qe2 {[%emt 0:02:36]} Qf6 {[%emt 0:02:50]} 36. a3 {[%emt 0:03:40]} Qf4 {[%emt 0:01:16]} 37. Bd1 {[%emt 0:01:10]} Ke7 {[%emt 0:00:38]} 38. Rxg4 {[%emt 0:02:35]} Rxg4 {[%emt 0:00:06]} 39. Qxg4 {[%emt 0:00:03]} Qxf2 {[%emt 0:02:34][%mdl 4096] Endgame. KQB-KQB} 40. Bb3 {[%emt 0:00:03]} d5 $1 {[%emt 0:00:13]} 41. exd5 {[%emt 0:13:00]} Qf5+ {[%emt 0:00:55]} 42. Qxf5 {[%emt 0:00:03]} exf5 {[%emt 0:00:05] KB-KB} 43. Bd1 {[%emt 0:01:06]} Kd6 {[%emt 0:00:10]} 44. Bf3 {[%emt 0:00:04]} a5 {[%emt 0:00:12]} 45. a4 {[%emt 0:02:41]} bxa4 {[%emt 0:00:20] The position is equal.} 46. Ka2 {[%emt 0:00:04]} Bf4 {[%emt 0:00:06]} 47. Ka3 {[%emt 0:00:05]} Bc1 {[%emt 0:00:05]} 48. Kxa4 {[%emt 0:00:12]} Bxb2 {[%emt 0:00:05]} 49. Kxa5 {[%emt 0:00:05] Weighted Error Value: White=0.07 (flawless) /Black=0.09 (flawless) .  Mistake:       	White=1     	Black=1      Inaccurate:     	White=3     	Black=4      OK:         	White=17    	Black=16     Best:        	White=2     	Black=2      Strong:       	---       	Black=3} 1/2-1/2

[Event "BL 2024-25"]
[Site "Austria"]
[Date "2024.10.12"]
[Round "4.14"]
[White "Andreikin, Dmitry"]
[Black "Naumann, Alexander"]
[Result "1-0"]
[Annotator "TA"]
[ECO "A28"]
[WhiteElo "2729"]
[BlackElo "2487"]
[PlyCount "65"]
[EventDate "2024.08.28"]
[EventType "team-tourn"]
[EventCountry "AUT"]
[SourceTitle "playchess.com"]
[Source "ChessBase"]
[SourceQuality "1"]
[WhiteTeam "Linz"]
[BlackTeam "Maria Saal"]
[TimeControl "40/5400+30:1800+30"]

{[%evp 9,65,0,0,0,6,6,19,0,16,25,20,21,47,38,45,34,47,33,59,52,71,58,83,79,91,60,72,76,95,40,79,68,98,5,172,155,181,182,148,147,139,159,168,190,157,172,174,166,356,346,365,362,361,358,354,249,364,364]} 1. c4 {[%emt 0:00:04]} Nf6 {[%emt 0:00:59]} 2. Nc3 {[%emt 0:00:11]} e5 {[%emt 0:00:20]} 3. Nf3 {[%emt 0:00:08]} Nc6 {[%emt 0:00:08]} 4. e4 {[%emt 0:00:06]} Bb4 {[%emt 0:07:13]} 5. d3 {[%emt 0:00:20]} d6 {[%emt 0:05:06]} 6. a3 {[%emt 0:00:19]} Bxc3+ {[%emt 0:00:08]} 7. bxc3 {[%emt 0:00:04]} Ne7 {[%emt 0:00:31]} 8. Nh4 {[%emt 0:07:55] The position is equal.} Nd7 {[%emt 0:10:46]} 9. g3 {[%emt 0:09:41]} O-O {[%emt 0:02:12]} 10. Bg2 {[%emt 0:00:32]} f5 {[%emt 0:12:21]} 11. exf5 {[%emt 0:04:10]} Nxf5 {[%emt 0:00:52]} 12. Nxf5 {[%emt 0:00:16]} Rxf5 {[%emt 0:00:08]} 13. O-O {[%emt 0:00:04]} Rf8 {[%emt 0:07:43]} 14. f4 {[%emt 0:08:17]} c6 {[%emt 0:04:51]} 15. f5 {[%emt 0:11:23] White is more active.} Nf6 {[%emt 0:04:23]} 16. g4 {[%emt 0:00:54]} h6 {[%emt 0:00:06]} 17. h3 {[%emt 0:04:55][%cal Bh2h3,Bh3h4][%mdl 32]} d5 {[%emt 0:03:18]} 18. cxd5 {[%emt 0:05:16]} cxd5 {[%emt 0:02:37]} 19. Ra2 {[%emt 0:11:29]} (19. Rb1 $16) 19... Qb6+ {[%emt 0:13:39]} 20. Kh1 {[%emt 0:00:47]} Bd7 {[%emt 0:00:11]} 21. Rb2 {[%emt 0:05:33]} (21. h4 $1 $16) 21... Qc7 $2 {[%emt 0:03:46] Black cannot hold the game after this.} (21... Qa6 $1 $11 {and Black has nothing to worry.}) 22. h4 $1 $18 {[%emt 0:00:53] Black must now prevent g5.} h5 {[%emt 0:01:50]} 23. g5 {[%emt 0:03:13]} ({But not} 23. gxh5 $6 Rf7 $16) 23... Ng4 {[%emt 0:00:14]} 24. Bxd5+ {[%emt 0:00:06]} Kh8 {[%emt 0:00:06]} 25. Rxb7 {[%emt 0:00:10]} Qd6 {[%emt 0:00:30] [#]} 26. Rxd7 $1 {[%emt 0:00:30]} Qxd7 {[%emt 0:00:30]} 27. Bxa8 $40 {[%emt 0:00:53][%mdl 128] White goes for the king.} Rxa8 {[%emt 0:00:00]} 28. Qf3 {[%emt 0:00:39]} Rd8 {[%emt 0:04:45] [#]} (28... Rf8 29. g6 Qd6) 29. f6 $1 {[%emt 0:01:35] Threatens to win with f7.} gxf6 {[%emt 0:00:11]} 30. gxf6 {[%emt 0:00:05]} Rf8 {[%emt 0:01:15]} 31. Bg5 {[%emt 0:03:38]} Kg8 {[%emt 0:02:08]} 32. Kg1 {[%emt 0:03:41]} Qf7 {[%emt 0:08:46]} (32... Qe6 $142 33. c4 Qb6+ 34. Kh1 Qb2 35. Qd5+ (35. f7+ Kg7 $18) 35... Rf7 36. Qa8+ Kh7 37. Qe4+ Kh8) 33. c4 {[%emt 0:02:32] Weighted Error Value: White=0.15 (very precise) /Black=0.36.  Loses game:     	---       	Black=1      Mistake:       	White=2     	Black=2      Inaccurate:     	White=1     	Black=4      OK:         	White=11    	Black=5      Best:        	White=2     	Black=1      Strong:       	White=2     	---        Brilliant:      	White=1     	---} 1-0

[Event "BL 2024-25"]
[Site "Austria"]
[Date "2024.10.12"]
[Round "4.15"]
[White "Halvax, Georg"]
[Black "Vitiugov, Nikita"]
[Result "0-1"]
[Annotator "TA"]
[ECO "D30"]
[WhiteElo "2443"]
[BlackElo "2667"]
[PlyCount "74"]
[EventDate "2024.08.28"]
[EventType "team-tourn"]
[EventCountry "AUT"]
[SourceTitle "playchess.com"]
[Source "ChessBase"]
[SourceQuality "1"]
[WhiteTeam "Maria Saal"]
[BlackTeam "Linz"]
[TimeControl "40/5400+30:1800+30"]

{[%evp 9,74,-2,2,-5,0,0,0,0,0,0,-4,0,7,0,10,2,0,0,-3,0,0,-4,-5,-3,0,0,0,-52,-39,-38,-32,-39,-29,-44,0,-30,-24,-47,-14,-21,-21,-72,-72,-67,-42,-41,-22,-35,-38,-37,-31,-54,-56,-60,-57,-72,-73,-163,-106,-178,-182,-326,-331,-292,-214,-275,-275]} 1. d4 {[%emt 0:00:04]} Nf6 {[%emt 0:00:23]} 2. c4 {[%emt 0:00:13]} e6 {[%emt 0:00:05]} 3. Nf3 {[%emt 0:00:08]} d5 {[%emt 0:00:43]} 4. e3 {[%emt 0:00:10]} Be7 {[%emt 0:00:25]} 5. a3 {[%emt 0:00:15]} O-O {[%emt 0:00:23]} 6. Nbd2 {[%emt 0:00:21]} b6 {[%emt 0:00:50]} 7. Bd3 {[%emt 0:01:44]} c5 {[%emt 0:00:59]} 8. dxc5 {[%emt 0:00:28] The position is equal.} bxc5 {[%emt 0:00:18]} 9. b3 {[%emt 0:00:13]} a5 {[%emt 0:02:07][%cal Oa5a4]} 10. O-O {[%emt 0:01:03]} Bb7 {[%emt 0:01:40]} 11. Bb2 {[%emt 0:00:57]} Nbd7 {[%emt 0:00:49]} 12. Qc2 {[%emt 0:00:54]} a4 {[%emt 0:11:43]} 13. b4 {[%emt 0:14:36]} cxb4 {[%emt 0:07:33]} 14. axb4 {[%emt 0:00:31] [#] aiming for c5.} Bxb4 {[%emt 0:00:51]} 15. Rxa4 {[%emt 0:02:51]} Rxa4 {[%emt 0:03:51]} 16. Qxa4 {[%emt 0:00:58]} Bxd2 {[%emt 0:00:28]} 17. Nxd2 {[%emt 0:01:21][%cal Bf3d2,Bd2e4,Be4c5][%mdl 32]} Nc5 {[%emt 0:02:45][%csl LRa4,LRd3]} 18. Qc2 {[%emt 0:01:43]} (18. Qb4 $11 Nxd3 19. Qxb7) 18... Nxd3 $15 {[%emt 0:01:24]} 19. Qxd3 {[%emt 0:01:14]} dxc4 {[%emt 0:00:50]} 20. Qc3 {[%emt 0:05:00][%cal Of2f3]} Qd5 {[%emt 0:05:04][%csl Gb7][%cal Rd5g2] [#]} 21. f3 $1 {[%emt 0:03:17]} Rd8 {[%emt 0:13:39]} 22. Ne4 {[%emt 0:05:15]} Ne8 {[%emt 0:01:05]} ({Stronger than} 22... Nxe4 23. Qxg7#) 23. Qb4 {[%emt 0:02:12] Inhibits Qb5.} h6 {[%emt 0:02:49]} 24. Nc5 {[%emt 0:08:41]} Bc6 {[%emt 0:03:15]} 25. Bc3 {[%emt 0:04:34]} (25. e4 $11 {remains equal.} Qd2 26. Qxd2 Rxd2 27. Be5) 25... Qg5 $17 {[%emt 0:07:54]} 26. e4 {[%emt 0:04:26]} Rc8 {[%emt 0:05:50]} 27. Bd4 {[%emt 0:02:42]} Qd8 $36 {[%emt 0:03:07][%mdl 2048] Black has good play.} 28. Bf2 {[%emt 0:10:47]} Rb8 {[%emt 0:01:07]} 29. Qc3 {[%emt 0:00:01][%cal Of2g3]} Qd6 {[%emt 0:04:25]} 30. Na6 {[%emt 0:07:12]} Ra8 {[%emt 0:01:23]} 31. Nc5 {[%emt 0:02:46]} Nc7 {[%emt 0:01:50]} 32. Qc2 {[%emt 0:12:14][%cal Of1d1]} Qe5 {[%emt 0:04:43]} (32... Bb5 $5) 33. Qc1 {[%emt 0:00:53] White is weak on the light squares} (33. Qxc4 $2 {is the wrong capture.} Bb5 34. Nd3 Qd6 $19 (34... Bxc4 $2 35. Nxe5 Bxf1 36. Kxf1 $19)) (33. Rc1 $17 {was called for.}) 33... Rd8 {[%emt 0:04:08]} (33... c3 $19 34. Qc2 Rd8) 34. Re1 {[%emt 0:04:02]} (34. Qxc4 $2 {perishes.} Bb5 35. Bg3 Qf6 $19 (35... Bxc4 $2 36. Bxe5 Bxf1 37. Bxc7 $19) (35... Qxg3 $2 36. Qxb5 Qg5 37. f4 $17)) (34. h4 $17) 34... c3 $19 {[%emt 0:00:57]} 35. Rd1 {[%emt 0:03:27]} (35. Kh1 {is a better defense.}) 35... Rxd1+ {[%emt 0:00:49]} 36. Qxd1 {[%emt 0:00:02]} Qg5 {[%emt 0:00:07] Prevents Be3.} 37. Nd3 {[%emt 0:01:13]} Qd2 {[%emt 0:00:47] Weighted Error Value: White=0.24 (precise) /Black=0.10 (very precise) .  Mistake:       	White=5     	Black=1      Inaccurate:     	White=1     	Black=2      OK:         	White=10    	Black=14     Best:        	---       	Black=4      Strong:       	White=1     	---} 0-1

[Event "BL 2024-25"]
[Site "Austria"]
[Date "2024.10.12"]
[Round "4.16"]
[White "Rodshtein, Maxim"]
[Black "Bauer, Sebastian"]
[Result "1-0"]
[Annotator "TA"]
[ECO "E90"]
[WhiteElo "2613"]
[BlackElo "2334"]
[PlyCount "55"]
[EventDate "2024.08.28"]
[EventType "team-tourn"]
[EventCountry "AUT"]
[SourceTitle "playchess.com"]
[Source "ChessBase"]
[SourceQuality "1"]
[WhiteTeam "Linz"]
[BlackTeam "Maria Saal"]
[TimeControl "40/5400+30:1800+30"]

{[%evp 15,54,33,41,17,61,55,62,63,107,97,100,112,100,103,114,90,130,128,142,104,157,54,32,0,0,0,0,0,443,307,553,626,600,609,985,987,29992,29993,29998,29999,29999]} 1. d4 {[%emt 0:00:06]} Nf6 {[%emt 0:00:06]} 2. c4 {[%emt 0:00:05]} g6 {[%emt 0:00:08]} 3. Nc3 {[%emt 0:00:20]} Bg7 {[%emt 0:00:08]} 4. e4 {[%emt 0:00:07]} d6 {[%emt 0:00:08]} 5. h3 {[%emt 0:01:41]} O-O {[%emt 0:00:37]} 6. Be3 {[%emt 0:00:11]} e5 {[%emt 0:00:39]} 7. d5 {[%emt 0:00:24]} Na6 {[%emt 0:00:20]} 8. Nf3 {[%emt 0:00:48]} Nh5 {[%emt 0:01:03]} 9. a3 {[%emt 0:01:23]} Qe8 {[%emt 0:02:55]} 10. b4 {[%emt 0:02:54][%cal Bb2b4,Bb4c5][%mdl 32]} f5 {[%emt 0:02:59]} 11. c5 {[%emt 0:07:48] White is slightly better.} f4 {[%emt 0:22:52]} 12. Bd2 {[%emt 0:05:35]} dxc5 {[%emt 0:05:25]} 13. Bxa6 {[%emt 0:03:45]} bxa6 {[%emt 0:00:32]} 14. bxc5 {[%emt 0:00:41]} Nf6 {[%emt 0:12:02]} 15. Qe2 {[%emt 0:07:55]} Kh8 {[%emt 0:09:00]} 16. Rb1 {[%emt 0:07:37]} g5 {[%emt 0:04:07]} 17. Nxg5 {[%emt 0:11:45]} Rg8 {[%emt 0:04:34] [#]} ({Better is} 17... c6) 18. Nf3 {[%emt 0:17:43] White is much more active.} (18. g3 $1 $16 {[%cal Rg3f4]}) 18... Bf8 $14 {[%emt 0:03:44][%csl LRc5,LRg2]} 19. Qc4 {[%emt 0:06:26] aiming for Rh2.} Rxg2 {[%emt 0:03:42]} 20. Ne2 $36 {[%emt 0:00:57][%mdl 2048] White is more active. A dynamic duo of knights.} Qh5 {[%emt 0:11:10][%csl LRf3,LRh3]} 21. Rb3 {[%emt 0:01:33][%cal Od2f4] And now Bxf4! would win.} Ng4 $2 {[%emt 0:03:35][%mdl 8192]} (21... Bxh3 $2 {is the wrong capture.} 22. Nxe5 (22. Qxa6 Nxe4 23. Qc6 Rd8 $18) 22... Qxe5 23. Rbxh3 (23. Bc3 Qg5 $18) 23... Qa1+ 24. Qc1 $18) (21... Bg4 $11 22. Neg1 Bxf3 23. Nxf3 Nd7) 22. Rf1 {[%emt 0:03:44]} Nh2 {[%emt 0:04:57]} (22... Qxh3 23. Nxe5 Nxe5) 23. Nxh2 $18 {[%emt 0:00:54]} Rxh2 {[%emt 0:00:09] [#]} 24. Nxf4 {[%emt 0:02:27][%mdl 512]} Qh4 {[%emt 0:05:31] [#]} (24... Qf7 25. Qc3) 25. d6 $1 {[%emt 0:05:24][%mdl 512]} exf4 {[%emt 0:01:14]} (25... Bd7 26. dxc7) 26. Qf7 {[%emt 0:01:26][%cal Rf7f8] White mates.} Qh6 {[%emt 0:01:08]} 27. Bc3+ {[%emt 0:00:14]} Bg7 {[%emt 0:00:05]} 28. Qf8# {[%emt 0:00:05] Weighted Error Value: White=0.22 (precise) /Black=1.10.  Loses game:     	---       	Black=1      Mistake:       	White=1     	Black=2      Inaccurate:     	White=2     	Black=3      OK:         	White=7     	Black=3      Best:        	White=1     	Black=2} 1-0

[Event "BL 2024-25"]
[Site "Austria"]
[Date "2024.10.12"]
[Round "4.17"]
[White "Genser, Harald"]
[Black "Shimanov, Aleksandr"]
[Result "0-1"]
[Annotator "TA"]
[ECO "B13"]
[WhiteElo "2266"]
[BlackElo "2582"]
[PlyCount "52"]
[EventDate "2024.08.28"]
[EventType "team-tourn"]
[EventCountry "AUT"]
[SourceTitle "playchess.com"]
[Source "ChessBase"]
[SourceQuality "1"]
[WhiteTeam "Maria Saal"]
[BlackTeam "Linz"]
[TimeControl "40/5400+30:1800+30"]

{[%evp 9,52,11,5,5,1,0,1,-5,1,-33,-37,-26,-32,-87,-78,-93,-21,-24,20,12,21,-63,-14,0,0,-156,-163,-145,-169,-279,-282,-281,-280,-545,-568,-644,-688,-1459,-1350,-29966,-29967,-5481,-2972,-29983,-29979]} 1. d4 {[%emt 0:00:04]} d5 {[%emt 0:00:42]} 2. Bf4 {[%emt 0:02:03]} c5 {[%emt 0:01:50]} 3. e3 {[%emt 0:01:02]} Nc6 {[%emt 0:00:28]} 4. Nf3 {[%emt 0:01:42]} cxd4 {[%emt 0:04:37]} 5. exd4 {[%emt 0:00:37]} Bf5 {[%emt 0:00:08]} 6. c3 {[%emt 0:04:41]} e6 {[%emt 0:02:45]} 7. Qb3 {[%emt 0:03:03]} Qd7 {[%emt 0:00:31]} 8. Nbd2 {[%emt 0:05:14] The position is equal.} f6 {[%emt 0:01:50]} 9. Be2 {[%emt 0:15:28]} g5 {[%emt 0:01:07]} 10. Bg3 {[%emt 0:05:04]} h5 {[%emt 0:00:25] [#] White must now prevent ...h4.} 11. h4 {[%emt 0:05:31]} (11. h3 $1 $15) 11... g4 $17 {[%emt 0:00:19]} 12. Nh2 {[%emt 0:01:32]} Nh6 {[%emt 0:03:29]} (12... Bg6 $17) 13. Nhf1 $11 {[%emt 0:03:22]} e5 {[%emt 0:07:39]} 14. dxe5 {[%emt 0:05:29]} fxe5 {[%emt 0:07:00]} 15. Bb5 {[%emt 0:10:55]} (15. Ne3 $11) 15... Bg7 {[%emt 0:08:28]} (15... a6 $1 $15 {is more appropriate.} 16. Bxc6 bxc6) 16. Ne3 {[%emt 0:05:39]} a6 {[%emt 0:02:01]} 17. Nxf5 $2 {[%emt 0:08:02]} ({White should play} 17. Qa3 $11) 17... Nxf5 $17 {[%emt 0:00:31]} 18. Bxc6 {[%emt 0:00:26]} bxc6 {[%emt 0:07:54]} ({But not} 18... Qxc6 19. O-O $15) 19. Nf1 {[%emt 0:02:53]} (19. Qa3 $142) 19... O-O $19 {[%emt 0:01:08]} 20. Qc2 {[%emt 0:03:24]} Bh6 {[%emt 0:02:00]} 21. Qe2 $2 {[%emt 0:02:39]} (21. Bxe5 $2 {too greedy.} Rae8 22. Ne3 Rxe5 $19) (21. Bh2) 21... Rae8 {[%emt 0:01:48]} 22. Kd1 {[%emt 0:07:48]} e4 {[%emt 0:08:11]} 23. Qxa6 {[%emt 0:02:09]} e3 {[%emt 0:01:22] [#] Hoping for ...Qh7.} 24. fxe3 {[%emt 0:00:35]} Nxe3+ {[%emt 0:01:59]} 25. Nxe3 {[%emt 0:00:37]} Rxe3 {[%emt 0:00:05]} 26. Be1 {[%emt 0:01:49]} Qf5 {[%emt 0:00:11] Weighted Error Value: White=1.17/Black=0.12 (very precise) .  Mistake:       	White=5     	Black=2      Inaccurate:     	White=2     	Black=1      OK:         	White=7     	Black=7      Best:        	---       	Black=1} 0-1